Cogmind - Beta 14 @@@ ROGUE MODE // 2024.12.02 @ 00:02:17 Player: PDD Result: Destroyed by G-34 Mercenary with Small Laser Performance ------------- Evolutions (0) 0 Regions Visited (1) 200 Robots Destroyed (11) 55 Value Destroyed (374) 374 Prototype IDs (2) 40 Alien Tech Used (0) 0 Bonus (0) 0 TOTAL SCORE: 669 Bonus ------- None Cogmind --------- Core Integrity 0/250 Matter 274/300 Energy 100/100 System Corruption 0% Temperature Cool (6) Movement Core (1350) Ox26 Location -10/Materials Parts ------- > --- POWER (1) -------- (None) > --- PROPULSION (2) --- (None) > --- UTILITY (2) ------ Huge Storage Unit Signal Interpreter > --- WEAPON (2) ------- (None) > --- INVENTORY (25) --- Ion Engine Light Treads Light Treads Improved Heat Sink Large Storage Unit Large Storage Unit Weight Redist. System Weight Redist. System Weight Redist. System Weight Redist. System Structural Scanner Terrain Scanner Plasma Cutter Plasma Cutter Peak State ------------ > --- POWER ------------ Ion Engine > --- PROPULSION ------- Light Treads Light Treads > --- UTILITY ---------- Huge Storage Unit Signal Interpreter > --- WEAPON ----------- Assault Rifle Assault Rifle > --- INVENTORY -------- Ion Engine Light Treads Light Treads Improved Heat Sink Large Storage Unit Large Storage Unit Weight Redist. System Weight Redist. System Weight Redist. System Weight Redist. System Terrain Scanner Plasma Cutter Plasma Cutter [Rating: 9] Favorites ----------- Power Ion Engine Engine Ion Engine Propulsion Light Treads Treads Light Treads Utility Signal Interpreter Storage Huge Storage Unit Processor Signal Interpreter Weapon Assault Rifle Energy Gun Medium Laser Ballistic Gun Assault Rifle Launcher Grenade Launcher Build | -11 -10 ------- Run | Yrd Mat Slots Evolved . | . . Power . | . . Propulsion . | . . Utility . | . . Weapon . | . . Parts Attached 12 | 7 5 Power 1 | 1 . Engine 1 | 1 . Core . | . . Reactor . | . . Propulsion 3 | 2 1 Treads 3 | 2 1 Leg . | . . Wheel . | . . Hover . | . . Flight . | . . Utility 4 | 1 3 Device . | . . Storage 3 | 1 2 Processor 1 | . 1 Hackware . | . . Protection . | . . Artifact . | . . Weapon 4 | 3 1 Energy Gun 1 | 1 . Energy Cannon . | . . Ballistic Gun 2 | 2 . Ballistic Cannon . | . . Launcher 1 | . 1 Special Weapon . | . . Impact Weapon . | . . Slashing Weapon . | . . Piercing Weapon . | . . Special Melee Weapon . | . . Unidentified Prototypes . | . . Parts Lost 6 | . 6 Power 1 | . 1 Propulsion 2 | . 2 Utility . | . . Weapon 3 | . 3 Highest Loss Streak 4 | . 4 To Critical Strikes . | . . Average Slot Usage (%) 87 | . 87 Engine 10 | . 10 Treads 23 | . 23 Storage 14 | . 14 Processor 12 | . 12 Ballistic Gun 21 | . 21 Launcher 2 | . 2 Peak Build Rating 9 | 6 9 Average Rating 7 | 4 7 On Entrance 3 | . 6 Naked Turns . | . . Heaviest Build 89 | 14 89 Greatest Support 40 | 40 40 Greatest Overweight (x) 27 | 1 27 Average Overweight (x) 1 | . 1 Largest Inventory Capacity 25 | 8 25 Average Capacity 20 | 7 21 Most Carried 15 | 2 15 Average Carried 10 | 1 10 Final Capacity 25 | 8 25 Final Carried 14 | 2 14 Class Distribution -------------------- 100% | Mutant Dominant Class ---------------- Mutant | -10/Materials Resources | -11 -10 ----------- Run | Yrd Mat Matter Collected 508 | 255 253 Remotely . | . . Salvage Created 410 | . 410 Parts 22 | . 22 Haulers Intercepted . | . . Recyclers Shooed 1 | . 1 Parts Field Recycled . | . . Retrieved Matter . | . . Parts Self-Destructed . | . . Prevented . | . . Kills | -11 -10 ------- Run | Yrd Mat Combat Hostiles Destroyed 8 | . 8 Guns 6 | . 6 AOE 2 | . 2 Classes Destroyed 4 | . 4 Worker 1 | . 1 Recycler 1 | . 1 Watcher 1 | . 1 Grunt 8 | . 8 Best Kill Streak 2 | . 2 Combat Bots Only 1 | . 1 Max Kills in Single Turn 2 | . 2 Gunslinging . | . . Exploded 1 | . 1 Melee . | . . Uniques/NPCs Destroyed . | . . Combat | -11 -10 -------- Run | Yrd Mat Hostile Shots Fired 88 | . 88 Missed 20 | . 20 Damage Taken 986 | . 986 Core 255 | . 255 Absorbed by Shields . | . . Core Remaining (%) 100 | 100 . Volleys Fired 43 | . 43 Largest 2 | . 2 Hottest 40 | . 40 Shots Fired 72 | . 72 Gun 67 | . 67 Cannon . | . . Launcher 5 | . 5 Special . | . . Kinetic 67 | . 67 Thermal . | . . Explosive 5 | . 5 Electromagnetic . | . . Robot Hit Streak 8 | . 8 Robot Miss Streak 3 | . 3 Penetration Max . | . . Secondary Targets . | . . Shots Hit Robots 45 | . 45 Core Hits 22 | . 22 Critical Kills . | . . Critical Parts Destroyed . | . . Critical Strikes . | . . Melee Attacks . | . . Impact . | . . Slashing . | . . Piercing . | . . Sneak Attacks . | . . Combat Hostiles . | . . Follow-up Attacks . | . . Damage Inflicted 787 | 1 786 Guns 512 | . 512 Cannons . | . . Explosions 266 | . 266 Melee . | . . Ramming 9 | 1 8 Kinetic 512 | . 512 Thermal . | . . Explosive 266 | . 266 Electromagnetic . | . . Impact . | . . Slashing . | . . Piercing . | . . Highest Corruption . | . . Average Corruption . | . . Corruption Purged . | . . Corruption Blocked . | . . Overload Shots . | . . Overflow Damage 13 | . 13 Projectiles . | . . Explosions 13 | . 13 Melee . | . . Knockbacks . | . . Impact . | . . Kinetic . | . . Secondary . | . . Self-Inflicted Damage 111 | . 111 Shots 5 | . 5 Rammed 3 | 2 1 Targets Rammed 4 | 2 2 Kicked . | . . Crushed 1 | . 1 Highest Temperature 20 | . 20 Average Temperature 5 | . 5 Received Heat Transfer 543 | . 543 Siege Activations . | . . Robots Corrupted . | . . Combat Hostiles . | . . Parts Fried . | . . Impact Corruptions . | . . Robots Melted . | . . Combat Hostiles . | . . Parts Melted . | . . Heat Transferred . | . . Parts Sabotaged . | . . Parts Stolen . | . . Parts Stripped . | . . Power Chain Reactions . | . . Alert | -11 -10 ------- Run | Yrd Mat Peak Influence 194 | . 194 Initial . | . . Average 50 | . 54 Maximum Alert Level . | . . Low Security (%) 100 | 100 100 Level 1 . | . . Level 2 . | . . Level 3 . | . . Level 4 . | . . Level 5 . | . . High Security . | . . Max Security . | . . Squads Dispatched 2 | . 2 Investigation 1 | . 1 Extermination . | . . Reinforcement 1 | . 1 Assault . | . . Garrison . | . . Intercept . | . . Searches Triggered . | . . Construction Impeded . | . . Haulers Reinforced . | . . Active Scanning Responses . | . . Cargo Convoy Interrupts . | . . Stealth | -11 -10 --------- Run | Yrd Mat Distress Signals . | . . Communications Jammed . | . . Distress Signals . | . . Times Spotted 15 | . 15 Peak Tracking Total 3 | . 3 Tactical Retreats 1 | . 1 Traps | -11 -10 ------- Run | Yrd Mat Traps Triggered 1 | . 1 Indirectly . | . . Trap Hack Attempts . | . . Triggered . | . . Disarmed . | . . Reprogrammed . | . . Reused . | . . Traps Extracted . | . . Installed . | . . Triggered . | . . Machines | -11 -10 ---------- Run | Yrd Mat Machines Disabled 4 | . 4 Max in Single Turn 1 | . 1 Machines Repaired . | . . Machines Dismantled . | . . Machines Sabotaged . | . . Overloaded Fab Kills . | . . Hacking | -11 -10 --------- Run | Yrd Mat Machines Accessed 5 | . 5 Terminals 5 | . 5 Fabricators . | . . Repair Stations . | . . Recycling Units . | . . Scanalyzers . | . . Garrison Access . | . . Total Hacks 11 | . 11 Successful 10 | . 10 Failed 1 | . 1 Catastrophic . | . . Database Lockouts . | . . Manual . | . . Terminals 11 | . 11 Fabricators . | . . Repair Stations . | . . Recycling Units . | . . Scanalyzers . | . . Garrison Access . | . . Terminal Hacks 10 | . 10 Record 7 | . 7 Prototype ID Bank 1 | . 1 Branch Access Points 1 | . 1 Locate Traps 1 | . 1 Fabricator Hacks . | . . Repair Station Hacks . | . . Recycling Unit Hacks . | . . Scanalyzer . | . . Garrison Access Hacks . | . . Unauthorized Hacks . | . . Terminals . | . . Fabricators . | . . Repair Stations . | . . Recycling Units . | . . Scanalyzers . | . . Garrison Access . | . . Data Cores Recovered . | . . Used . | . . Hacking Detections 2 | . 2 Full Trace Events 1 | . 1 Feedback Events . | . . Feedback Blocked . | . . Robot Schematics Acquired . | . . Robots Built . | . . Authchips . | . . Time . | . . Total Robot Build Rating . | . . Part Schematics Acquired . | . . Parts Built . | . . Authchips . | . . Time . | . . Total Part Build Rating . | . . Parts Repaired . | . . Time . | . . Parts Recycled . | . . Recycled Matter . | . . Retrieved Matter . | . . Retrieved Components . | . . Parts Scanalyzed . | . . Part Schematics Acquired . | . . Parts Damaged . | . . Bothacking | -11 -10 ------------ Run | Yrd Mat Used RIF Installer . | . . Robots Hacked . | . . Non-combat . | . . Combat . | . . Robot Hacks Applied . | . . Relay Couplers Released . | . . Fabnet Peak Effective % . | . . Robots Rewired . | . . Allies Hacked . | . . Hacks Repelled . | . . Allies | -11 -10 -------- Run | Yrd Mat Total Allies . | . . Largest Group . | . . Highest-Rated Group . | . . Highest-Rated Ally . | . . Total Orders . | . . Ally Attacks . | . . Total Damage . | . . Kills . | . . Allies Corrupted . | . . Allies Melted . | . . Intel | -11 -10 ------- Run | Yrd Mat Robot Analysis Total . | . . Derelict Logs Recovered . | . . Drone Launches . | . . Drone Recoveries . | . . Exploration | -11 -10 ------------- Run | Yrd Mat Turns Passed 1069 | 78 991 Spaces Moved 373 | 42 331 Core 8 | 6 2 Treads 365 | 36 329 Legs . | . . Wheels . | . . Hover . | . . Flight . | . . Fastest Speed 50 | 50 160 Average Speed 241 | 150 253 Slowest Speed 1400 | 160 1400 Overloaded Moves . | . . Propulsion Burnouts . | . . Robots Hopped . | . . Cave-ins Triggered . | . . Exploration Rate (%) 26 | 3 50 Regions Visited 1 Branch Regions . Pre-discovered Areas . | . . Known Exits Taken . | . . Unknown Exits Taken 1 | 1 . Scrap Searched . | . . Spaces Dug . | . . Terrain Destroyed 13 | . 13 Melee . | . . Projectile . | . . AOE 13 | . 13 Terrain Rammed . | . . Walls Destroyed . | . . Machines Disabled . | . . Actions | -11 -10 --------- Run | Yrd Mat Total 467 | 53 414 Wait 18 | . 18 Move 372 | 41 331 Hop . | . . Pick Up 16 | 3 13 Fast Attach 8 | 5 3 Attach 2 | 1 1 Detach . | . . Swap 2 | 1 1 Drop 2 | . 2 Fire 43 | . 43 Melee . | . . Ram . | . . Kick . | . . Crush 4 | 2 2 Escape Stasis . | . . Rewire . | . . Trap . | . . Miscellaneous . | . . Route ------- -11/Scrapyard -10/Materials (discovered 1 exit: *Min) History --------- Turn | Location | Event 18 | -11/Scrapyard | Discovered new exit (range 15) 79 | -11/Scrapyard | Entered Materials 250 | -10/Materials | Discovered new exit (range 8) 315 | -10/Materials | Build established: Mutant 477 | -10/Materials | Identified exit to Mines 887 | -10/Materials | Lost 4 parts (1p1n2w) 1046 | -10/Materials | Core integrity fell below 50% 1061 | -10/Materials | Core integrity fell below 20% 1070 | -10/Materials | Destroyed by G-34 Mercenary with Small Laser Last Messages --------------- 00887_ Acquired 6 matter. 00888_ U-05 Engineer lays Concrete. 00890_ K-01 Serf collects debris. 00891_ U-05 Engineer lays Concrete. 00895_ K-01 Serf collects debris. 00895_ U-05 Engineer lays Concrete. 00899_ U-05 Engineer builds a Wall. 00927_ U-05 Engineer lays Concrete. 00936_ R-06 Scavenger collects Sml. Matter Pod. 00954_ Acquired 43 matter. 00978_ O-16 Technician: "IFF HANDSHAKE FAILED. SECURING TERMINAL." 00991_ ALERT: Hostiles spotted, dispatching reinforcements to Terminal M002. 01043_ K-01 Serf cleans the Integration Channel. 01045_ Integration Channel disabled. 01047_ Terminal disabled. 01047_ Lgt. Treads destroyed. 01047_ Destroyed Lgt. Treads. 01049_ G-34 Mercenary destroyed. 01059_ Grenade Launcher destroyed. Map ----- +----------------------------------------------------+ | | | | | | | | | | | | | ?????????????????????????????????????????????????? | | ?????????????????????????????????????????????????? | | ?????????????????????????????????????????????????? | | ?????????????????????????????????????????????????? | | ?????????????????????????????????????????????????? | | ?????????????????????????????????????????????????? | | ????????####?????????????????????????????????????? | | ??????? ?????????????????????????????????????? | | ???????? ?????????????????????????????????????? | | ???????? ?????????????????????????????????????? | | ????????# ?????????????????????????????????????? | | ????????# ?????????????????????????????????????? | | ????????# #????????????????????????????????????? | | ????????# +????????????########????????????????? | | ????????# #????????????#| [[#????????######### | | ????????# #????#########| [[#????????# | | ???????##^^^##???#"""#"""# #????????# "T" | | ???????# #####"T"#"T"# ########## | | ???????# o # """ | | ???????# T @ + """ | | ???????# """"" # """ | | ???????# # """""" % ####### # | | ???????####### """ " [ #????# # | | ?????????????# ##????# ######### | | ?????????????# g T #?????# #???????? | | ?????????????# g "##?????#+########? | | ?????????????# ######## ^ #? | | ?????????????# # # """"" ## | | ?????????????################ # """ # ^""""" # | | ????????????????# ### # R" # """" #! | | ????????????????# + # """ # ^ ^ + | | ? ##########+#### ### + # "" # | | # #?# # | + """ # | | + #?# ######## "" # | | # #? ""?????# = # | | ????###########+# ## "????#######+### | | ?????????# # ## !"#????# !!%+ | | ?????????#""" ############ > ""#????# # | | ?????????#""" #??????????# |"#????# # | | ?????????#""" #??????????# "#????# # | | ?????????# #??????????# """?????# # | | ?????????#""" #??????????## ####????# # | | ?????????#""" #???????????# #???????# # | | ?????????#""" #???????????# #???????# # | +----------------------------------------------------+ Best States ------------- Heat Dissipation 25 Energy Generation 10 Energy Capacity 250 Matter Stores 294 Matter Capacity 300 Sight Range 16 Terrain Scan Density 10 Evasion (%) 40 Recoil Reduction 2 Item Schematics ----------------- None Robot Schematics ------------------ None Fabricated ------------ Nothing Alien Tech Used ----------------- None Achievements -------------- None Challenges ------------ None Game ------ Seed 69 Manual? 1 Play Time 00:06:55 Cumulative 4.3 hours Start 2024.12.01 @ 23:56:03 End 2024.12.02 @ 00:02:17 Sessions 1 Manual Loads 0 Difficulty Rogue Special Mode None Game No. 11 Rogue 9 Adventurer 2 Explorer 0 Win Type - Total 0 Types 0/0/0/0/0/0/0/0/0 Lore% 5 Gallery% 9 Achievement% 10 Wizard Run 0 Options --------- Layout 0 ASCII 0 Keyboard 0 Movement Numpad Keybinds 0 Fullscreen 2 Font 18/SmallcapsGlow Map View 38x25 Zoom Use 100% Tactical HUD 1 Map Filters NONE Filters NONE Steam 1 RUN: 471ce065-1e05-4837-8813-55fb0c8460aa